[Event "Early-Titled-Tuesday-Blitz-June-18-2024"]
[Site "Chess.com"]
[Date "2024.06.18"]
[Round "1"]
[White "Mikhail_Bryakin"]
[Black "SargissyanSargis"]
[Result "1-0"]
[WhiteElo "2741"]
[BlackElo "2417"]
[TimeControl "180+1"]
[EndTime "8:08:24 PDT"]
[Termination "Mikhail_Bryakin won by resignation"]

1. e4 {[%clk 0:02:57.3]} 1... e5 {[%clk 0:02:59.9]} 2. Nf3 {[%clk 0:02:56]} 2...
Nc6 {[%clk 0:03:00.5]} 3. Nc3 {[%clk 0:02:51.5]} 3... Nf6 {[%clk 0:03:00.3]} 4.
d4 {[%clk 0:02:50]} 4... exd4 {[%clk 0:03:00.5]} 5. Nxd4 {[%clk 0:02:50.9]} 5...
Bb4 {[%clk 0:03:00.8]} 6. Nxc6 {[%clk 0:02:48.2]} 6... bxc6 {[%clk 0:03:01.7]}
7. Bd3 {[%clk 0:02:48.5]} 7... O-O {[%clk 0:03:00.8]} 8. O-O {[%clk 0:02:48.7]}
8... d5 {[%clk 0:03:01.4]} 9. exd5 {[%clk 0:02:48.5]} 9... Bg4 {[%clk
0:02:59.9]} 10. Be2 {[%clk 0:02:33]} 10... Bxe2 {[%clk 0:02:49.6]} 11. Nxe2
{[%clk 0:02:33.1]} 11... cxd5 {[%clk 0:02:50.2]} 12. Bg5 {[%clk 0:02:23.3]}
12... Be7 {[%clk 0:02:12.9]} 13. Qd3 {[%clk 0:02:07]} 13... h6 {[%clk
0:02:10.3]} 14. Bxf6 {[%clk 0:01:59.1]} 14... Bxf6 {[%clk 0:02:08.6]} 15. c3
{[%clk 0:01:53.8]} 15... Rb8 {[%clk 0:02:01.6]} 16. b3 {[%clk 0:01:53.2]} 16...
Re8 {[%clk 0:02:00.6]} 17. Rad1 {[%clk 0:01:53.3]} 17... c6 {[%clk 0:01:56.6]}
18. c4 {[%clk 0:01:45]} 18... Qa5 {[%clk 0:01:37.6]} 19. Nc1 {[%clk 0:01:44.5]}
19... Rbd8 {[%clk 0:01:32.5]} 20. g3 {[%clk 0:01:14.9]} 20... dxc4 {[%clk
0:00:57.1]} 21. Qxc4 {[%clk 0:01:15.8]} 21... Rxd1 {[%clk 0:00:53.4]} 22. Rxd1
{[%clk 0:01:16.7]} 22... Re1+ {[%clk 0:00:50.3]} 23. Rxe1 {[%clk 0:01:17]} 23...
Qxe1+ {[%clk 0:00:50.9]} 24. Qf1 {[%clk 0:00:52.9]} 24... Qd2 {[%clk 0:00:50.7]}
25. a4 {[%clk 0:00:50.4]} 25... Bd4 {[%clk 0:00:50]} 26. Nd3 {[%clk 0:00:46.4]}
26... Qc2 {[%clk 0:00:44.7]} 27. b4 {[%clk 0:00:40.8]} 27... Qxa4 {[%clk
0:00:43.9]} 28. Qe2 {[%clk 0:00:40.5]} 28... g6 {[%clk 0:00:31.5]} 29. Qe4
{[%clk 0:00:37.3]} 29... Qd1+ {[%clk 0:00:28.1]} 30. Kg2 {[%clk 0:00:37.5]}
30... Bf6 {[%clk 0:00:24.2]} 31. h4 {[%clk 0:00:38]} 31... h5 {[%clk 0:00:23.9]}
32. Nf4 {[%clk 0:00:37.8]} 32... Kg7 {[%clk 0:00:23.1]} 33. Qxc6 {[%clk
0:00:37.6]} 33... Qd4 {[%clk 0:00:17.5]} 34. b5 {[%clk 0:00:37.5]} 34... Be5
{[%clk 0:00:15.8]} 35. Ne2 {[%clk 0:00:34.3]} 35... Qd3 {[%clk 0:00:14.7]} 36.
Ng1 {[%clk 0:00:34.9]} 36... Bf6 {[%clk 0:00:14.2]} 37. Nf3 {[%clk 0:00:35.4]}
37... Qe2 {[%clk 0:00:13.6]} 38. Qd5 {[%clk 0:00:34.8]} 38... Bb2 {[%clk
0:00:11]} 39. Ng5 {[%clk 0:00:32.8]} 39... Qe7 {[%clk 0:00:10.3]} 40. Ne4 {[%clk
0:00:30.3]} 40... Qe5 {[%clk 0:00:05.6]} 41. Qc4 {[%clk 0:00:30.4]} 41... Qd4
{[%clk 0:00:04.9]} 42. Qc6 {[%clk 0:00:25]} 42... Ba3 {[%clk 0:00:01.8]} 43. Ng5
{[%clk 0:00:19.4]} 43... Qf6 {[%clk 0:00:01.7]} 44. Qb7 {[%clk 0:00:18.5]} 44...
Bb2 {[%clk 0:00:01.8]} 45. Ne4 {[%clk 0:00:18.5]} 45... Qd4 {[%clk 0:00:01.5]}
46. Ng5 {[%clk 0:00:18.8]} 46... Qf6 {[%clk 0:00:01.7]} 47. Nf3 {[%clk
0:00:19.5]} 47... Bd4 {[%clk 0:00:01.1]} 48. Qd7 {[%clk 0:00:16.1]} 48... Bb6
{[%clk 0:00:01.6]} 49. Qd5 {[%clk 0:00:16.1]} 49... Qb2 {[%clk 0:00:01.7]} 50.
Ng5 {[%clk 0:00:03.5]} 50... Qxf2+ {[%clk 0:00:01.7]} 51. Kh3 {[%clk 0:00:04.2]}
51... Qf5+ {[%clk 0:00:02.3]} 52. Qxf5 {[%clk 0:00:03.9]} 52... gxf5 {[%clk
0:00:03.2]} 53. Kg2 {[%clk 0:00:04.5]} 53... f6 {[%clk 0:00:03.7]} 54. Ne6+
{[%clk 0:00:04.4]} 54... Kf7 {[%clk 0:00:03.9]} 55. Nf4 {[%clk 0:00:05.3]} 55...
Ke7 {[%clk 0:00:03.6]} 56. Nxh5 {[%clk 0:00:05.8]} 56... Kd6 {[%clk 0:00:03.9]}
57. Ng7 {[%clk 0:00:05.8]} 57... f4 {[%clk 0:00:03.3]} 58. h5 {[%clk 0:00:05.9]}
58... f5 {[%clk 0:00:03.4]} 59. h6 {[%clk 0:00:05.1]} 59... Bd4 {[%clk
0:00:03.8]} 60. Nxf5+ {[%clk 0:00:05.4]} 60... Kd5 {[%clk 0:00:04]} 61. Nxd4
{[%clk 0:00:06.3]} 61... Kxd4 {[%clk 0:00:04.7]} 62. h7 {[%clk 0:00:07]} 62...
Kc5 {[%clk 0:00:05.3]} 63. gxf4 {[%clk 0:00:07.5]} 1-0

[Event "Early-Titled-Tuesday-Blitz-June-18-2024"]
[Site "Chess.com"]
[Date "2024.06.18"]
[Round "1"]
[White "NailBashirli"]
[Black "Pakarma"]
[Result "1/2-1/2"]
[WhiteElo "2762"]
[BlackElo "2440"]
[TimeControl "180+1"]
[EndTime "8:08:25 PDT"]
[Termination "Game drawn by repetition"]

1. e4 {[%clk 0:03:00]} 1... c5 {[%clk 0:02:57.1]} 2. Nc3 {[%clk 0:02:55.5]} 2...
e6 {[%clk 0:02:53]} 3. g3 {[%clk 0:02:53.9]} 3... Nc6 {[%clk 0:02:49.9]} 4. Bg2
{[%clk 0:02:53.7]} 4... g6 {[%clk 0:02:50.2]} 5. f4 {[%clk 0:02:48.6]} 5... Bg7
{[%clk 0:02:47.5]} 6. Nf3 {[%clk 0:02:47.4]} 6... d6 {[%clk 0:02:44.5]} 7. O-O
{[%clk 0:02:47.3]} 7... Nge7 {[%clk 0:02:44.7]} 8. d3 {[%clk 0:02:47.6]} 8...
O-O {[%clk 0:02:44.6]} 9. Be3 {[%clk 0:02:47.7]} 9... Nd4 {[%clk 0:02:44.9]} 10.
Nd2 {[%clk 0:02:40.6]} 10... Rb8 {[%clk 0:02:36.6]} 11. Rb1 {[%clk 0:02:37.4]}
11... b5 {[%clk 0:02:28.8]} 12. Ne2 {[%clk 0:02:36.5]} 12... Nxe2+ {[%clk
0:02:22.2]} 13. Qxe2 {[%clk 0:02:37.4]} 13... Qc7 {[%clk 0:02:02.6]} 14. g4
{[%clk 0:02:36.3]} 14... f5 {[%clk 0:02:00.4]} 15. g5 {[%clk 0:02:21.8]} 15...
Bb7 {[%clk 0:01:38.9]} 16. c3 {[%clk 0:02:14.5]} 16... b4 {[%clk 0:01:11.2]} 17.
cxb4 {[%clk 0:02:11.7]} 17... cxb4 {[%clk 0:01:11]} 18. Rbc1 {[%clk 0:02:07]}
18... Qd7 {[%clk 0:01:07.2]} 19. Nb3 {[%clk 0:01:24.8]} 19... Ba6 {[%clk
0:00:55.6]} 20. exf5 {[%clk 0:00:36.9]} 20... Nxf5 {[%clk 0:00:42.9]} 21. Bf2
{[%clk 0:00:36.3]} 21... Rfc8 {[%clk 0:00:37]} 22. Rfe1 {[%clk 0:00:28.5]} 22...
Rxc1 {[%clk 0:00:35.6]} 23. Nxc1 {[%clk 0:00:28.2]} 23... e5 {[%clk 0:00:25.1]}
24. Qg4 {[%clk 0:00:17.3]} 24... Rc8 {[%clk 0:00:16.8]} 25. Bd5+ {[%clk
0:00:16.6]} 25... Kh8 {[%clk 0:00:16.9]} 26. Qf3 {[%clk 0:00:13.5]} 26... Rc2
{[%clk 0:00:14.7]} 27. Bb3 {[%clk 0:00:12.3]} 27... Rc8 {[%clk 0:00:10.3]} 28.
Ne2 {[%clk 0:00:10.8]} 28... Bb7 {[%clk 0:00:10.3]} 29. Qh3 {[%clk 0:00:10.1]}
29... e4 {[%clk 0:00:08.6]} 30. dxe4 {[%clk 0:00:05.6]} 30... Bxe4 {[%clk
0:00:09.5]} 31. Ng3 {[%clk 0:00:05.8]} 31... d5 {[%clk 0:00:08.6]} 32. Nxe4
{[%clk 0:00:05.6]} 32... dxe4 {[%clk 0:00:09.5]} 33. Rxe4 {[%clk 0:00:06.2]}
33... Qc6 {[%clk 0:00:07.5]} 34. Qf3 {[%clk 0:00:05]} 34... Qc1+ {[%clk
0:00:06.9]} 35. Kg2 {[%clk 0:00:04.7]} 35... Qxb2 {[%clk 0:00:07.2]} 36. Re2
{[%clk 0:00:04.1]} 36... Qc3 {[%clk 0:00:07.3]} 37. Qxc3 {[%clk 0:00:03.8]}
37... bxc3 {[%clk 0:00:08.2]} 38. Bc2 {[%clk 0:00:03.9]} 38... Nd4 {[%clk
0:00:06.5]} 39. Bxd4 {[%clk 0:00:04.2]} 39... Bxd4 {[%clk 0:00:07.1]} 40. h4
{[%clk 0:00:04.8]} 40... Kg7 {[%clk 0:00:06.7]} 41. Kf3 {[%clk 0:00:05.2]} 41...
Bc5 {[%clk 0:00:06.9]} 42. f5 {[%clk 0:00:05]} 42... gxf5 {[%clk 0:00:06.7]} 43.
Bxf5 {[%clk 0:00:05.9]} 43... Bd6 {[%clk 0:00:06.8]} 44. Bc2 {[%clk 0:00:05.2]}
44... Rc4 {[%clk 0:00:06.2]} 45. h5 {[%clk 0:00:04.4]} 45... Rf4+ {[%clk
0:00:06.2]} 46. Ke3 {[%clk 0:00:04.8]} 46... Rg4 {[%clk 0:00:05.5]} 47. h6+
{[%clk 0:00:03.5]} 47... Kf8 {[%clk 0:00:05.8]} 48. Bxh7 {[%clk 0:00:02.2]}
48... Rxg5 {[%clk 0:00:05.9]} 49. Kd3 {[%clk 0:00:01]} 49... Rg3+ {[%clk
0:00:05.7]} 50. Kc2 {[%clk 0:00:01.1]} 50... Rh3 {[%clk 0:00:04.3]} 51. Rf2+
{[%clk 0:00:01.8]} 51... Ke7 {[%clk 0:00:04.2]} 52. Bd3 {[%clk 0:00:02.7]} 52...
Rxh6 {[%clk 0:00:02.8]} 53. Re2+ {[%clk 0:00:03.6]} 53... Kd7 {[%clk 0:00:02.6]}
54. Kxc3 {[%clk 0:00:04.5]} 54... Kc7 {[%clk 0:00:03.5]} 55. Kc2 {[%clk
0:00:05.2]} 55... Bc5 {[%clk 0:00:04.1]} 56. Be4 {[%clk 0:00:06.1]} 56... Rd6
{[%clk 0:00:03.5]} 57. Bd3 {[%clk 0:00:07]} 57... Rd4 {[%clk 0:00:03.4]} 58. Re4
{[%clk 0:00:07.9]} 58... Rxe4 {[%clk 0:00:03.7]} 59. Bxe4 {[%clk 0:00:08.8]}
59... Kb6 {[%clk 0:00:04.3]} 60. Kb3 {[%clk 0:00:09.5]} 60... Bd6 {[%clk
0:00:05.2]} 61. a4 {[%clk 0:00:10.3]} 61... Bc7 {[%clk 0:00:06.1]} 62. Kc4
{[%clk 0:00:11]} 62... a5 {[%clk 0:00:06.9]} 63. Bb1 {[%clk 0:00:11.9]} 63...
Bb8 {[%clk 0:00:07.4]} 64. Bc2 {[%clk 0:00:12.8]} 64... Bc7 {[%clk 0:00:08.2]}
65. Kd5 {[%clk 0:00:13.7]} 65... Bb8 {[%clk 0:00:09.1]} 66. Ke6 {[%clk
0:00:14.6]} 66... Bc7 {[%clk 0:00:09.8]} 67. Kd7 {[%clk 0:00:15.5]} 67... Be5
{[%clk 0:00:10.3]} 68. Kc8 {[%clk 0:00:16.4]} 68... Bc3 {[%clk 0:00:11.2]} 69.
Kd7 {[%clk 0:00:17.3]} 69... Bb4 {[%clk 0:00:12]} 70. Ke6 {[%clk 0:00:17.8]}
70... Bc3 {[%clk 0:00:12.9]} 71. Kd5 {[%clk 0:00:18.7]} 71... Bb4 {[%clk
0:00:13.8]} 72. Kc4 {[%clk 0:00:19.5]} 72... Bc5 {[%clk 0:00:14.4]} 73. Be4
{[%clk 0:00:20.3]} 73... Bb4 {[%clk 0:00:15.3]} 74. Bd5 {[%clk 0:00:20.6]} 74...
Bc5 {[%clk 0:00:16.2]} 75. Be4 {[%clk 0:00:21.5]} 75... Bb4 {[%clk 0:00:17.1]}
76. Bd5 {[%clk 0:00:22.4]} 76... Bc5 {[%clk 0:00:17.9]} 77. Be4 {[%clk
0:00:23.3]} 1/2-1/2

[Event "Early-Titled-Tuesday-Blitz-June-18-2024"]
[Site "Chess.com"]
[Date "2024.06.18"]
[Round "1"]
[White "Ash15K"]
[Black "Ginger_GM"]
[Result "0-1"]
[WhiteElo "2304"]
[BlackElo "2633"]
[TimeControl "180+1"]
[EndTime "8:08:32 PDT"]
[Termination "Ginger_GM won by checkmate"]

1. Nf3 {[%clk 0:03:00.9]} 1... f5 {[%clk 0:02:56.1]} 2. g3 {[%clk 0:03:00.3]}
2... Nf6 {[%clk 0:02:16.1]} 3. Bg2 {[%clk 0:02:59.2]} 3... d6 {[%clk 0:02:14.7]}
4. d4 {[%clk 0:02:57.3]} 4... e6 {[%clk 0:02:12.6]} 5. O-O {[%clk 0:02:57]} 5...
Be7 {[%clk 0:02:11.3]} 6. c4 {[%clk 0:02:56.3]} 6... O-O {[%clk 0:02:10.9]} 7.
Nc3 {[%clk 0:02:56.3]} 7... a5 {[%clk 0:02:10.8]} 8. b3 {[%clk 0:02:55]} 8...
Ne4 {[%clk 0:02:07.5]} 9. Qc2 {[%clk 0:02:52.4]} 9... Nxc3 {[%clk 0:02:06.6]}
10. Qxc3 {[%clk 0:02:53.3]} 10... Nc6 {[%clk 0:02:06]} 11. Bb2 {[%clk 0:02:50]}
11... Bf6 {[%clk 0:02:05.4]} 12. Qd2 {[%clk 0:02:44.1]} 12... e5 {[%clk
0:02:04.8]} 13. d5 {[%clk 0:02:22.1]} 13... Ne7 {[%clk 0:01:47.7]} 14. Ne1
{[%clk 0:02:16.2]} 14... f4 {[%clk 0:01:39]} 15. e4 {[%clk 0:02:05.5]} 15... g5
{[%clk 0:01:32.6]} 16. Nd3 {[%clk 0:01:45]} 16... Qe8 {[%clk 0:01:21.1]} 17.
gxf4 {[%clk 0:01:43.9]} 17... gxf4 {[%clk 0:01:19.3]} 18. f3 {[%clk 0:01:40.3]}
18... Ng6 {[%clk 0:01:13.2]} 19. Kh1 {[%clk 0:01:23]} 19... Nh4 {[%clk
0:01:12.3]} 20. Rg1 {[%clk 0:01:21.4]} 20... Kh8 {[%clk 0:01:10.8]} 21. c5
{[%clk 0:01:13.6]} 21... Bd7 {[%clk 0:01:03.5]} 22. cxd6 {[%clk 0:01:02.9]}
22... cxd6 {[%clk 0:01:03.4]} 23. Rac1 {[%clk 0:01:01.9]} 23... Qh5 {[%clk
0:00:45]} 24. Qf2 {[%clk 0:01:00]} 24... Bd8 {[%clk 0:00:38.1]} 25. a4 {[%clk
0:00:51.4]} 25... Ra6 {[%clk 0:00:37.2]} 26. Qd2 {[%clk 0:00:23.2]} 26... Bb6
{[%clk 0:00:36.9]} 27. Nxf4 {[%clk 0:00:21.1]} 27... Qh6 {[%clk 0:00:34.5]} 28.
Ng6+ {[%clk 0:00:12.5]} 28... Qxg6 {[%clk 0:00:32.9]} 29. Bh3 {[%clk 0:00:10.5]}
29... Bxg1 {[%clk 0:00:28.2]} 30. Bxd7 {[%clk 0:00:07.1]} 30... Nxf3 {[%clk
0:00:25]} 31. Qe2 {[%clk 0:00:06.8]} 31... Bd4 {[%clk 0:00:23.5]} 32. Bf5 {[%clk
0:00:05]} 32... Qh5 {[%clk 0:00:19.3]} 33. Bxd4 {[%clk 0:00:04.4]} 33... exd4
{[%clk 0:00:19.5]} 34. Rf1 {[%clk 0:00:04.6]} 34... Qxh2+ {[%clk 0:00:17.5]} 35.
Qxh2 {[%clk 0:00:04.5]} 35... Nxh2 {[%clk 0:00:18.1]} 36. Kxh2 {[%clk
0:00:05.2]} 36... Rb6 {[%clk 0:00:18.6]} 37. Rf3 {[%clk 0:00:04.8]} 37... Kg7
{[%clk 0:00:16.2]} 38. Kg3 {[%clk 0:00:04.3]} 38... Ra6 {[%clk 0:00:16.2]} 39.
Rd3 {[%clk 0:00:04.7]} 39... Rb6 {[%clk 0:00:16]} 40. Kg4 {[%clk 0:00:04.5]}
40... Kf6 {[%clk 0:00:16.3]} 41. Kf4 {[%clk 0:00:04.7]} 41... Rg8 {[%clk
0:00:16.5]} 42. Bg4 {[%clk 0:00:04.2]} 42... Rg6 {[%clk 0:00:15.1]} 43. Rg3
{[%clk 0:00:03.3]} 43... Rb4 {[%clk 0:00:14.6]} 44. Rd3 {[%clk 0:00:02.6]} 44...
Rh6 {[%clk 0:00:14.4]} 45. Rg3 {[%clk 0:00:02.4]} 45... Rh1 {[%clk 0:00:14.2]}
46. Bf5 {[%clk 0:00:02.3]} 46... Rf1+ {[%clk 0:00:12.7]} 47. Kg4 {[%clk
0:00:02.9]} 47... Ke5 {[%clk 0:00:12.3]} 48. Kg5 {[%clk 0:00:02.7]} 48... Rd1
{[%clk 0:00:10.5]} 49. Kh6 {[%clk 0:00:02.3]} 49... d3 {[%clk 0:00:10.8]} 50.
Rg7 {[%clk 0:00:02.3]} 50... d2 {[%clk 0:00:10.8]} 51. Re7+ {[%clk 0:00:02.6]}
51... Kd4 {[%clk 0:00:11.3]} 52. Kg7 {[%clk 0:00:01]} 52... Rg1+ {[%clk
0:00:11.2]} 53. Kf6 {[%clk 0:00:01.7]} 53... d1=Q {[%clk 0:00:11]} 54. Rxh7
{[%clk 0:00:02.6]} 54... Qf3 {[%clk 0:00:10.5]} 55. Re7 {[%clk 0:00:02.2]} 55...
Rxb3 {[%clk 0:00:10.6]} 56. Ke6 {[%clk 0:00:02.6]} 56... Qf4 {[%clk 0:00:10.5]}
57. Rf7 {[%clk 0:00:02.6]} 57... Qe5+ {[%clk 0:00:10.5]} 58. Kd7 {[%clk
0:00:02.8]} 58... Rc3 {[%clk 0:00:11.1]} 59. Re7 {[%clk 0:00:02.9]} 59... Rc7+
{[%clk 0:00:08.2]} 60. Kxc7 {[%clk 0:00:03.4]} 60... Qxe7+ {[%clk 0:00:08.3]}
61. Kb8 {[%clk 0:00:04.3]} 61... Kc5 {[%clk 0:00:08.2]} 62. Bc8 {[%clk
0:00:03.7]} 62... b5 {[%clk 0:00:08.4]} 63. axb5 {[%clk 0:00:03.8]} 63... Kxb5
{[%clk 0:00:08.8]} 64. Ka8 {[%clk 0:00:04]} 64... Kb6 {[%clk 0:00:09.1]} 65. Ba6
{[%clk 0:00:01.4]} 65... Qa7# {[%clk 0:00:08.2]} 0-1

[Event "Early-Titled-Tuesday-Blitz-June-18-2024"]
[Site "Chess.com"]
[Date "2024.06.18"]
[Round "1"]
[White "David_ATM"]
[Black "Hamisandwich"]
[Result "0-1"]
[WhiteElo "2422"]
[BlackElo "2754"]
[TimeControl "180+1"]
[EndTime "8:08:33 PDT"]
[Termination "Hamisandwich won by checkmate"]

1. e4 {[%clk 0:03:00.9]} 1... e5 {[%clk 0:02:55.3]} 2. Nf3 {[%clk 0:03:00.7]}
2... Nc6 {[%clk 0:02:53.8]} 3. Bb5 {[%clk 0:03:01.1]} 3... a6 {[%clk 0:02:52.9]}
4. Ba4 {[%clk 0:03:01.1]} 4... Nge7 {[%clk 0:02:49.4]} 5. O-O {[%clk 0:03:00.1]}
5... d6 {[%clk 0:02:45.5]} 6. c3 {[%clk 0:02:59.9]} 6... Bd7 {[%clk 0:02:43]} 7.
Bc2 {[%clk 0:02:58.5]} 7... Ng6 {[%clk 0:02:41.6]} 8. d4 {[%clk 0:02:57.5]} 8...
Be7 {[%clk 0:02:37.1]} 9. Nbd2 {[%clk 0:02:48.5]} 9... O-O {[%clk 0:02:31]} 10.
Nc4 {[%clk 0:02:48.6]} 10... Bg4 {[%clk 0:02:30.2]} 11. dxe5 {[%clk 0:02:47.5]}
11... Ncxe5 {[%clk 0:02:25.6]} 12. Ncxe5 {[%clk 0:02:26]} 12... Nxe5 {[%clk
0:02:24.8]} 13. Bf4 {[%clk 0:02:26.5]} 13... Nxf3+ {[%clk 0:02:16.8]} 14. gxf3
{[%clk 0:02:27.4]} 14... Bh3 {[%clk 0:02:17.4]} 15. Re1 {[%clk 0:02:27.6]} 15...
Bf6 {[%clk 0:02:08]} 16. Kh1 {[%clk 0:02:22.3]} 16... Re8 {[%clk 0:02:03.3]} 17.
Rg1 {[%clk 0:02:21.7]} 17... g6 {[%clk 0:01:59.3]} 18. Bb3 {[%clk 0:02:12.8]}
18... Be6 {[%clk 0:01:46.2]} 19. Bxe6 {[%clk 0:01:57.9]} 19... Rxe6 {[%clk
0:01:46.1]} 20. Qd5 {[%clk 0:01:57.9]} 20... c6 {[%clk 0:01:40.7]} 21. Qd2
{[%clk 0:01:56.1]} 21... Be5 {[%clk 0:01:34.1]} 22. Bxe5 {[%clk 0:01:54.2]}
22... Rxe5 {[%clk 0:01:25.5]} 23. Rad1 {[%clk 0:01:52.3]} 23... Qf6 {[%clk
0:01:24.2]} 24. Rg3 {[%clk 0:01:48.1]} 24... Rd8 {[%clk 0:01:16.5]} 25. Qd4
{[%clk 0:01:13.9]} 25... Qh4 {[%clk 0:01:01.9]} 26. Kg2 {[%clk 0:01:06]} 26...
Rh5 {[%clk 0:01:01.5]} 27. h3 {[%clk 0:01:06.3]} 27... Qe7 {[%clk 0:00:43.1]}
28. Qd2 {[%clk 0:00:50.1]} 28... d5 {[%clk 0:00:39.6]} 29. Qf4 {[%clk
0:00:30.5]} 29... Rd6 {[%clk 0:00:28.9]} 30. exd5 {[%clk 0:00:23.4]} 30... Rhxd5
{[%clk 0:00:24.9]} 31. Rxd5 {[%clk 0:00:22.5]} 31... Rxd5 {[%clk 0:00:25.8]} 32.
h4 {[%clk 0:00:19.4]} 32... Qe1 {[%clk 0:00:15.5]} 33. h5 {[%clk 0:00:17.8]}
33... Rxh5 {[%clk 0:00:13.7]} 34. Rh3 {[%clk 0:00:09.5]} 34... Rxh3 {[%clk
0:00:10.9]} 35. Kxh3 {[%clk 0:00:10.4]} 35... Qe6+ {[%clk 0:00:10.4]} 36. Kg2
{[%clk 0:00:09.3]} 36... Qe7 {[%clk 0:00:06.4]} 37. Qd4 {[%clk 0:00:07.9]} 37...
h5 {[%clk 0:00:06.5]} 38. Kf1 {[%clk 0:00:07.7]} 38... Kh7 {[%clk 0:00:06.9]}
39. Kg2 {[%clk 0:00:08.2]} 39... Qg5+ {[%clk 0:00:06.4]} 40. Kh2 {[%clk
0:00:06]} 40... Qd5 {[%clk 0:00:07.3]} 41. Qf4 {[%clk 0:00:05]} 41... Kg7 {[%clk
0:00:06.8]} 42. Kg2 {[%clk 0:00:05]} 42... Qxa2 {[%clk 0:00:06]} 43. Qb4 {[%clk
0:00:04.7]} 43... b5 {[%clk 0:00:04.1]} 44. Qd4+ {[%clk 0:00:05.1]} 44... Kh7
{[%clk 0:00:04.1]} 45. b4 {[%clk 0:00:04]} 45... Qd5 {[%clk 0:00:03.9]} 46. Qf6
{[%clk 0:00:03.8]} 46... Qe6 {[%clk 0:00:04.2]} 47. Qf4 {[%clk 0:00:02.9]} 47...
Kg7 {[%clk 0:00:04.3]} 48. Qc7 {[%clk 0:00:03]} 48... Qf6 {[%clk 0:00:03.8]} 49.
Qb6 {[%clk 0:00:01.5]} 49... Qxc3 {[%clk 0:00:03.4]} 50. Qxa6 {[%clk 0:00:01.6]}
50... Qf6 {[%clk 0:00:02.5]} 51. Qb6 {[%clk 0:00:02.1]} 51... Qg5+ {[%clk
0:00:03.1]} 52. Kf1 {[%clk 0:00:02.1]} 52... Qd5 {[%clk 0:00:04]} 53. Kg2 {[%clk
0:00:02.4]} 53... h4 {[%clk 0:00:04.9]} 54. Qc7 {[%clk 0:00:02.6]} 54... Qg5+
{[%clk 0:00:05.3]} 55. Kf1 {[%clk 0:00:02.7]} 55... Qf6 {[%clk 0:00:05.9]} 56.
Kg2 {[%clk 0:00:02.8]} 56... Qg5+ {[%clk 0:00:06.3]} 57. Kf1 {[%clk 0:00:02.8]}
57... Qc1+ {[%clk 0:00:06.6]} 58. Kg2 {[%clk 0:00:03.2]} 58... Qc3 {[%clk
0:00:07]} 59. Qd6 {[%clk 0:00:02.5]} 59... Qf6 {[%clk 0:00:06.9]} 60. Qc5 {[%clk
0:00:02.6]} 60... Kh7 {[%clk 0:00:06.2]} 61. Qf8 {[%clk 0:00:02.3]} 61... Qf5
{[%clk 0:00:05.2]} 62. Kf1 {[%clk 0:00:02.5]} 62... Qxf3 {[%clk 0:00:04.9]} 63.
Qc5 {[%clk 0:00:02.4]} 63... h3 {[%clk 0:00:04.6]} 64. Qxc6 {[%clk 0:00:01.2]}
64... Qxc6 {[%clk 0:00:04]} 65. Kg1 {[%clk 0:00:01.6]} 65... Qg2# {[%clk
0:00:04.9]} 0-1